bitfinex/quotes_SOLUSD_20220311
["timestamp","ask_amount","ask_price","bid_price","bid_amount"]
[1647015796497,74.11,80.966,80.891,3.04447957]
[1647015796701,123.5,80.957,80.891,3.04447957]
[1647015796898,18.542,80.94,80.891,3.04447957]
[1647015797098,63.83242484,80.939,80.891,3.04447957]
[1647015797299,63.83242484,80.939,80.87,3.04447957]
[1647015800197,63.83242484,80.939,80.87,21.58237957]
[1647015800198,0.25,80.938,80.87,21.58237957]
[1647015800602,0.25,80.938,80.871,3.04447957]
[1647015801200,63.83242484,80.939,80.871,3.04447957]
[1647015801600,23.8293,80.954,80.871,3.04447957]
[1647015802600,123.5,80.952,80.871,3.04447957]
[1647015803402,65.1925426,80.953,80.871,3.04447957]
[1647015803403,123.5,80.95,80.871,3.04447957]
[1647015803603,23.8293,80.954,80.79,132.61584438]
[1647015803604,197.61,80.938,80.817,4.86831193]
[1647015803805,123.5,80.936,80.84,3.04447957]
[1647015804003,123.5,80.934,80.84,3.04447957]
[1647015804204,123.5,80.932,80.84,3.04447957]
[1647015804402,137.92,80.93,80.84,3.04447957]
[1647015804603,123.5,80.928,80.84,3.04447957]
[1647015804903,123.5,80.922,80.84,3.04447957]
[1647015805202,48.565957,80.925,80.79,14.42]
[1647015805203,74.11,80.908,80.824,3.04447957]
[1647015805408,123.5,80.905,80.824,3.04447957]
[1647015805602,123.5,80.903,80.794,7.50807563]
[1647015805806,54.98897977,80.906,80.794,7.50807563]
[1647015805807,74.11,80.894,80.794,7.50807563]
[1647015806010,123.5,80.877,80.784,3.04447957]
[1647015806204,18.5648,80.86,80.756,4.90956292]
[1647015806503,50.58254735,80.859,80.758,123.5]
[1647015806904,30.6575,80.877,80.759,3.04447957]
[1647015807104,24.4705,80.877,80.759,3.04447957]
[1647015807306,24.4705,80.877,80.81,18.5475]
[1647015807704,24.4705,80.877,80.774,123.5]
[1647015807907,56.70688532,80.876,80.773,23.5789]
[1647015808207,56.70688532,80.876,80.775,3.04447957]
[1647015809007,23.46,80.875,80.775,3.04447957]
[1647015809212,18.5571,80.87,80.79,18.5577]
[1647015809814,18.5571,80.87,80.775,3.04447957]
[1647015810009,18.5571,80.87,80.773,42.145]
[1647015810811,0.25,80.874,80.8,18.5563]
[1647015811116,0.25,80.874,80.775,4.15005658]
[1647015811310,0.25,80.874,80.776,0.25]
[1647015811510,0.25,80.874,80.776,3.29447957]
[1647015811911,0.25,80.874,80.81,18.5537]
[1647015812112,123.75,80.874,80.78,61.8484]
[1647015812313,0.25,80.874,80.78,61.8484]
[1647015812512,6.436,80.874,80.78,61.8484]
[1647015814115,18.5569,80.87,80.8,18.556]
[1647015815131,123.5,80.869,80.8,18.556]
[1647015815333,123.5,80.869,80.78,61.8484]
[1647015815536,51.72047397,80.859,80.773,23.5789]
[1647015816738,6.186,80.869,80.773,23.5789]
[1647015816938,23.46,80.875,80.775,123.5]
[1647015817138,23.46,80.875,80.776,0.25]
[1647015817339,23.46,80.875,80.776,3.29447957]
[1647015817540,23.46,80.875,80.81,18.5533]
[1647015817939,23.46,80.875,80.777,3.04447957]
[1647015817940,55.1648426,80.874,80.777,3.04447957]
[1647015818140,123.75,80.873,80.762,4.59567052]
[1647015818440,123.75,80.873,80.766,3.04447957]
[1647015818641,123.5,80.869,80.79,18.5584]
[1647015819642,123.5,80.871,80.79,18.5584]
[1647015819841,6.184,80.872,80.8,18.5564]
[1647015820241,55.1648426,80.874,80.774,7.08996909]
[1647015820741,54.6648426,80.874,80.775,126.79447957]
[1647015821141,54.6648426,80.874,80.81,18.554]
[1647015821743,0.25,80.873,80.81,18.554]
[1647015822346,54.6648426,80.874,80.82,18.5502]
[1647015822844,23.46,80.875,80.82,18.5502]
[1647015823046,61.8401,80.91,80.82,18.5502]
[1647015823047,6.184,80.899,80.821,5.51603438]
[1647015823247,46.9529,80.919,80.822,6.183]
[1647015823447,46.9529,80.919,80.822,9.22747957]
[1647015823644,46.9529,80.919,80.822,6.183]
[1647015823847,48.446319,80.918,80.84,18.5409]
[1647015824046,48.446319,80.918,80.841,6.182]
[1647015824249,171.946319,80.918,80.841,3.04447957]
[1647015824446,123.5,80.916,80.829,3.04447957]
[1647015824650,6.432,80.917,80.829,3.04447957]
[1647015825654,18.5468,80.91,80.83,18.5502]
[1647015825851,6.182,80.917,80.83,18.5502]
[1647015826052,6.182,80.917,80.817,4.449685]
[1647015826053,46.9529,80.919,80.84,14.42]
[1647015826252,6.182,80.945,80.841,6.182]
[1647015826454,6.182,80.945,80.842,127.56530772]
[1647015826652,6.18,80.973,80.843,6.43]
[1647015826851,59.53547556,80.945,80.843,6.43]
[1647015827053,59.53547556,80.945,80.843,9.22447957]
[1647015827252,59.53547556,80.945,80.85,18.5356]
[1647015827455,59.53547556,80.945,80.851,6.18]
[1647015827653,6.18,80.944,80.851,3.04447957]
[1647015827854,6.18,80.944,80.852,3.04447957]
[1647015828254,6.18,80.944,80.86,18.5436]
[1647015828854,6.18,80.944,80.861,3.04447957]
[1647015829356,6.18,80.944,80.88,18.5379]
[1647015829554,123.75,80.943,80.861,3.04447957]
[1647015829756,123.5,80.941,80.861,3.04447957]
[1647015830054,123.5,80.941,80.862,6.18]
[1647015830254,123.5,80.939,80.862,6.18]
[1647015830657,123.5,80.939,80.861,3.04447957]
[1647015830855,123.5,80.939,80.85,18.5438]
[1647015831457,123.75,80.943,80.85,18.5438]
[1647015832060,123.75,80.943,80.851,3.04447957]
[1647015832262,62.0554392,80.929,80.86,18.5411]
[1647015832659,62.0554392,80.929,80.852,6.18]
[1647015832859,22.6122,80.928,80.852,6.18]
[1647015833060,146.1122,80.928,80.853,3.04447957]
[1647015833864,123.5,80.919,80.852,6.18]
[1647015834864,48.73522402,80.899,80.852,6.18]
[1647015835564,48.73522402,80.899,80.829,3.04447957]
[1647015835865,22.6122,80.898,80.829,3.04447957]
[1647015837664,0.25,80.897,80.829,3.04447957]
[1647015837868,0.25,80.897,80.83,18.5471]
[1647015838265,0.25,80.897,80.831,3.04447957]
[1647015838967,22.6122,80.898,80.831,3.04447957]
[1647015839165,22.6122,80.898,80.84,18.5456]
[1647015839564,22.6122,80.898,80.841,3.04447957]
[1647015840471,23.5159,80.917,80.85,18.5432]
[1647015840668,0.25,80.916,80.85,18.5432]
[1647015840868,0.25,80.916,80.851,3.04447957]
[1647015841472,50.88712979,80.916,80.86,18.541]
[1647015841874,23.5159,80.917,80.861,3.04447957]
[1647015842071,24.6148,80.942,80.861,3.04447957]
[1647015842472,24.6148,80.942,80.871,5.32136355]
[1647015842772,24.6148,80.942,80.872,0.25]
[1647015842971,24.6148,80.942,80.872,3.29447957]
[1647015843176,24.6148,80.942,80.873,3.04447957]
[1647015843370,24.6274,80.955,80.874,0.25]
[1647015843577,24.6274,80.955,80.88,61.7639]
[1647015843971,24.6274,80.955,80.881,3.04447957]
[1647015844477,24.6274,80.955,80.891,5.22226395]
[1647015844672,57.74863577,80.983,80.9,61.7491]
[1647015845072,57.74863577,80.983,80.901,3.04447957]
[1647015846172,57.74863577,80.983,80.91,18.5248]
[1647015846573,0.25,80.982,80.911,3.04447957]
[1647015847177,18.5298,80.98,80.911,3.04447957]
[1647015847776,123.5,80.979,80.911,3.04447957]
[1647015848177,123.0,80.979,80.911,3.04447957]
[1647015848380,18.532,80.97,80.911,3.04447957]
[1647015848594,123.0,80.968,80.911,3.04447957]
[1647015848795,61.16018917,80.969,80.911,3.04447957]
[1647015849600,123.5,80.959,80.911,3.04447957]
[1647015849805,123.5,80.959,80.883,3.04447957]
[1647015849998,48.59368226,80.956,80.861,45.2264]
[1647015850199,0.25,80.955,80.861,45.2264]
[1647015850999,18.542,80.94,80.87,18.5401]
[1647015851199,49.44676308,80.939,80.87,18.5401]
[1647015851400,0.25,80.955,80.871,4.60071605]
[1647015851601,0.25,80.955,80.871,7.64519562]
[1647015852000,0.25,80.955,80.872,3.04447957]
[1647015852301,46.6658,80.958,80.872,3.04447957]
[1647015852499,46.6658,80.958,80.89,18.5287]
[1647015852900,23.2735,80.987,80.891,3.04447957]
[1647015853099,46.9222,80.986,80.891,3.04447957]
[1647015853302,46.9222,80.986,80.892,0.25]
[1647015853506,46.9222,80.986,80.892,5.09413503]
[1647015853703,46.9222,80.986,80.893,3.04447957]
[1647015853903,46.9222,80.986,80.911,4.09287886]
[1647015854304,46.9222,80.986,80.912,3.04447957]
[1647015854608,52.00729803,80.985,80.912,3.04447957]
[1647015855106,0.25,80.984,80.912,3.04447957]
[1647015855506,0.25,80.984,80.93,18.5216]
[1647015855809,51.25729803,80.985,80.931,145.0]
[1647015856006,50.92812544,80.985,80.931,145.0]
[1647015857106,50.92812544,80.985,80.94,18.5246]
[1647015857506,6.176,81.02,80.94,18.5246]
[1647015857707,24.7675,81.021,80.94,18.5246]
[1647015857908,24.7675,81.021,80.941,3.04447957]
[1647015858109,24.7675,81.021,80.96,18.5146]
[1647015858508,55.08055611,81.02,80.96,18.5146]
[1647015858814,123.5,81.019,80.931,145.0]
[1647015859009,172.1338,81.019,80.931,145.0]
[1647015859210,18.5264,81.0,80.931,145.0]
[1647015859410,50.60859652,80.999,80.931,145.0]
[1647015860113,123.5,80.998,80.924,3.04447957]
[1647015860312,18.5279,80.99,80.909,3.04447957]
[1647015860713,23.2211,80.998,80.914,3.04447957]
[1647015860911,24.3696,80.989,80.914,3.04447957]
[1647015861515,24.3696,80.989,80.93,18.5256]
[1647015862112,24.3696,80.989,80.914,3.04447957]
[1647015862314,24.3696,80.989,80.905,3.04447957]
[1647015862517,18.5297,80.98,80.905,3.04447957]
[1647015862714,123.5,80.978,80.905,3.04447957]
[1647015862918,123.5,80.978,80.894,3.04447957]
[1647015863112,23.2211,80.978,80.894,3.04447957]
[1647015863514,123.5,80.977,80.894,3.04447957]
[1647015863716,54.907558,80.959,80.894,3.04447957]
[1647015863918,123.5,80.958,80.894,3.04447957]
[1647015864121,123.5,80.958,80.879,3.04447957]
[1647015864315,170.5704,80.957,80.879,3.04447957]
[1647015864816,47.0704,80.957,80.88,18.5391]
[1647015865216,47.0704,80.957,80.881,3.04447957]
[1647015865615,47.0704,80.957,80.881,7.49861156]
[1647015866019,47.0704,80.957,80.9,18.5282]
[1647015866220,24.9581,80.975,80.9,18.5282]
[1647015866516,24.9581,80.975,80.89,61.7607]
[1647015866517,53.2484,80.999,80.901,8.84120226]
[1647015866718,47.0704,80.999,80.901,3.04447957]
[1647015866920,47.0704,80.999,80.903,123.5]
[1647015867121,49.27124374,80.998,80.93,18.5235]
[1647015867528,49.27124374,80.998,80.931,3.04447957]
[1647015869225,49.27124374,80.998,80.95,18.5225]
[1647015869724,47.0704,80.999,80.95,18.5225]
[1647015869924,24.2052,81.015,80.951,3.04447957]
[1647015870526,24.2052,81.015,80.97,18.5152]
[1647015870925,47.6796,81.039,80.97,18.5152]
[1647015871330,123.5,81.038,80.951,3.04447957]
[1647015871527,18.5179,81.03,80.96,18.5202]
[1647015874330,123.5,81.029,80.951,3.04447957]
[1647015874628,47.24485175,81.009,80.951,3.04447957]
[1647015876332,123.5,80.999,80.951,3.04447957]
[1647015876532,123.5,80.999,80.945,5.94]
[1647015876829,14.42,81.02,80.945,5.94]
[1647015876830,123.5,80.985,80.945,5.94]
[1647015877430,123.5,80.979,80.945,5.94]
[1647015877830,52.48542626,80.986,80.945,5.94]
[1647015879033,123.5,80.985,80.945,5.94]
[1647015879432,123.5,80.979,80.945,5.94]
[1647015879633,52.48542626,80.986,80.945,5.94]
[1647015880231,6.175,80.985,80.945,5.94]
[1647015880635,18.5299,80.98,80.945,5.94]
[1647015880833,18.5299,80.98,80.887,18.1558]
[1647015881032,45.3018,80.979,80.887,18.1558]
[1647015881432,123.5,80.978,80.887,18.1558]
[1647015881633,18.5322,80.97,80.89,18.5317]
[1647015881833,59.57626141,80.969,80.886,3.04447957]
[1647015882034,59.57626141,80.969,80.881,48.6989]
[1647015882035,123.5,80.968,80.881,48.6989]
[1647015882253,123.5,80.968,80.876,3.04447957]
[1647015882455,129.678,80.968,80.857,5.98719918]
[1647015882655,129.678,80.968,80.857,5.3546857]
[1647015882858,129.678,80.968,80.872,3.04447957]
[1647015883055,18.5344,80.96,80.872,3.04447957]
[1647015883754,6.179,80.959,80.872,3.04447957]
[1647015883957,23.8768,80.959,80.88,18.5355]
[1647015884155,59.57626141,80.969,80.881,127.78470044]
[1647015884356,59.57626141,80.969,80.881,156.04396903]
[1647015884657,59.57626141,80.969,80.883,123.5]
[1647015885055,59.57626141,80.969,80.9,18.5286]
[1647015885456,59.57626141,80.969,80.901,3.29447957]
[1647015885657,59.57626141,80.969,80.902,4.31171046]
[1647015885859,59.57626141,80.969,80.902,7.35619003]
[1647015886056,59.57626141,80.969,80.92,18.5253]
[1647015886456,59.57626141,80.969,80.921,3.04447957]
[1647015887761,23.8768,80.978,80.921,3.04447957]
[1647015888059,23.8768,80.978,80.93,18.5246]
[1647015888463,23.8768,80.978,80.931,3.04447957]
[1647015888860,56.75727213,80.977,80.931,3.04447957]
[1647015892064,56.75727213,80.977,80.909,3.04447957]
[1647015892663,123.5,80.976,80.893,3.04447957]
[1647015893365,123.5,80.969,80.894,6.177]
[1647015893765,123.5,80.967,80.893,3.04447957]
[1647015893965,123.5,80.965,80.88,3.04447957]
[1647015894166,123.5,80.963,80.881,6.178]
[1647015894566,123.5,80.949,80.882,3.04447957]
[1647015894767,123.5,80.949,80.857,25.21478902]
[1647015894768,123.5,80.947,80.871,3.04447957]
[1647015895066,123.5,80.947,80.872,6.179]
[1647015895266,123.5,80.947,80.863,6.179]
[1647015895466,18.5444,80.93,80.863,6.179]
[1647015895667,47.9302,80.946,80.872,3.04447957]
[1647015895866,47.9302,80.946,80.874,123.5]
[1647015896072,23.8876,80.965,80.876,123.5]
[1647015896268,23.8876,80.965,80.877,0.25]
[1647015896466,23.8876,80.965,80.878,123.5]
[1647015896666,51.51907307,80.964,80.89,18.5274]
[1647015896865,51.51907307,80.964,80.891,6.178]
[1647015897067,51.51907307,80.964,80.881,6.178]
[1647015897267,51.51907307,80.964,80.891,3.04447957]
[1647015897668,51.51907307,80.964,80.892,6.178]
[1647015897867,51.51907307,80.964,80.891,3.04447957]
[1647015897868,18.5339,80.96,80.891,3.04447957]
[1647015898068,99.90157307,80.964,80.893,3.04447957]
[1647015899069,99.90157307,80.964,80.9,18.532]
[1647015901074,48.3825,80.964,80.901,6.178]
[1647015901477,48.3825,80.964,80.91,18.5297]
[1647015902078,64.78009993,80.963,80.91,18.5297]
[1647015902280,64.78009993,80.963,80.903,6.176]
[1647015902479,64.78009993,80.963,80.9,18.5317]
[1647015902680,64.78009993,80.963,80.901,6.178]
[1647015902880,64.78009993,80.963,80.89,6.178]
[1647015903682,64.78009993,80.963,80.89,24.7119]
[1647015904883,48.3825,80.964,80.891,8.05564923]
[1647015905083,48.3825,80.964,80.91,18.5259]
[1647015906885,48.3825,80.964,80.9,18.5316]
[1647015907087,48.3825,80.964,80.892,3.04447957]
[1647015907689,48.3825,80.964,80.89,6.178]
[1647015907889,123.5,80.959,80.89,6.178]
[1647015908291,123.5,80.957,80.86,37.0153]
[1647015908502,14.42,80.96,80.86,64.45742227]
[1647015908709,14.42,80.96,80.88,61.7754]
[1647015909112,14.42,80.96,80.89,18.5327]
[1647015909310,14.42,80.96,80.881,3.04447957]
[1647015909511,123.5,80.959,80.881,3.04447957]
[1647015910516,14.42,80.96,80.89,18.5361]
[1647015910715,48.3825,80.964,80.89,18.5361]
[1647015911513,48.3825,80.964,80.9,18.5321]
[1647015912119,48.3825,80.964,80.901,3.04447957]
[1647015912714,48.3825,80.964,80.91,18.5275]
[1647015914815,48.3825,80.964,80.901,3.04447957]
[1647015915222,48.3825,80.964,80.86,32.8944]
[1647015915223,18.5341,80.96,80.889,3.04447957]
[1647015917216,18.5341,80.96,80.89,18.5357]
[1647015917616,18.5341,80.96,80.891,3.04447957]
[1647015919019,18.5341,80.96,80.9,18.5336]
[1647015919621,48.3825,80.964,80.9,18.5336]
[1647015921425,18.5341,80.96,80.9,18.5336]
[1647015921630,48.3825,80.964,80.9,18.5336]
[1647015921827,48.3825,80.964,80.9,21.57807957]
[1647015922427,6.178,80.996,80.901,5.67847172]
[1647015922631,47.6678,80.995,80.92,18.5249]
[1647015923029,47.6678,80.995,80.921,3.04447957]
[1647015923429,49.94171485,80.994,80.921,3.04447957]
[1647015923631,49.94171485,80.994,80.93,18.5264]
[1647015924634,18.5269,80.99,80.922,6.175]
[1647015925232,18.5269,80.99,80.921,6.176]
[1647015926532,18.5269,80.99,80.911,3.04447957]
[1647015926732,18.5269,80.99,80.911,21.91147957]
[1647015926934,18.5269,80.99,80.912,6.176]
[1647015927138,18.5269,80.99,80.912,9.22047957]
[1647015927655,18.5269,80.99,80.88,14.42]
[1647015927656,18.5339,80.97,80.902,3.04447957]
[1647015927855,50.25727219,80.969,80.903,6.176]
[1647015928255,50.25727219,80.969,80.901,6.176]
[1647015929055,18.5342,80.96,80.901,6.176]
[1647015929257,46.9024,80.968,80.901,6.176]
[1647015929661,123.5,80.967,80.901,6.176]
[1647015929856,123.5,80.967,80.893,6.176]
[1647015930058,18.5337,80.96,80.893,6.176]
[1647015930258,18.5337,80.96,80.894,3.04447957]
[1647015930458,18.5337,80.96,80.895,6.178]
[1647015930859,18.5337,80.96,80.896,3.04447957]
[1647015931157,18.5337,80.96,80.897,6.178]
[1647015932167,18.5337,80.96,80.9,18.5336]
[1647015933662,46.9024,80.968,80.901,3.04447957]
[1647015933868,46.9024,80.968,80.902,6.176]
[1647015934163,46.9024,80.968,80.92,18.528]
[1647015934365,46.9024,80.968,80.921,6.176]
[1647015934863,46.9024,80.968,80.911,6.176]
[1647015935263,46.9024,80.968,80.911,9.22047957]
[1647015935463,46.9024,80.968,80.912,3.04447957]
[1647015935664,46.9024,80.968,80.913,6.176]
[1647015936064,46.9024,80.968,80.914,3.04447957]
[1647015936264,46.9024,80.968,80.93,18.526]
[1647015936866,46.9024,80.968,80.915,6.176]
[1647015937065,46.9024,80.968,80.914,3.04447957]
[1647015937466,46.9024,80.968,80.92,18.5277]
[1647015937666,46.9024,80.968,80.914,3.04447957]
[1647015937866,46.9024,80.968,80.904,3.04447957]
[1647015938066,46.9024,80.968,80.889,3.04447957]
[1647015938266,46.9024,80.968,80.89,6.178]
[1647015938566,18.5342,80.96,80.89,24.7121]
[1647015938771,18.5342,80.96,80.891,3.04447957]
[1647015938970,123.5,80.959,80.892,6.178]
[1647015939169,123.5,80.959,80.879,6.178]
[1647015939369,123.5,80.957,80.879,6.178]
[1647015939572,123.5,80.955,80.879,6.178]
[1647015940770,18.5368,80.95,80.88,18.5388]
[1647015940970,18.5368,80.95,80.881,6.179]
[1647015941375,18.5368,80.95,80.879,6.179]
[1647015941774,123.5,80.949,80.879,6.179]
[1647015941972,18.5435,80.93,80.879,6.179]
[1647015942172,60.84745257,80.929,80.878,3.04447957]
[1647015942874,123.5,80.919,80.861,3.04447957]
[1647015943073,123.5,80.919,80.832,32.27190063]
[1647015943276,123.5,80.915,80.833,18.996]
[1647015943473,123.5,80.913,80.833,18.996]
[1647015943673,123.5,80.911,80.82,30.48660184]
[1647015943975,123.5,80.911,80.821,33.62512227]
[1647015944176,18.5534,80.91,80.83,18.5486]
[1647015944373,18.5534,80.91,80.82,83.23347957]
[1647015944374,18.5534,80.91,80.831,6.182]
[1647015944576,18.5534,80.91,80.823,6.182]
[1647015944775,18.5534,80.91,80.831,27.44212227]
[1647015944977,18.5534,80.91,80.832,6.182]
[1647015945175,123.5,80.909,80.832,6.182]
[1647015945375,18.5492,80.9,80.832,6.182]
[1647015945575,56.61437296,80.899,80.832,6.182]
[1647015946376,56.61437296,80.899,80.84,18.5476]
[1647015946578,56.61437296,80.899,80.841,6.182]
[1647015946779,56.61437296,80.899,80.84,18.5476]
[1647015946979,56.61437296,80.899,80.841,3.04447957]
[1647015947178,56.61437296,80.899,80.833,27.44212227]
[1647015947583,56.61437296,80.899,80.834,3.04447957]
[1647015948779,56.61437296,80.899,80.84,18.5482]
[1647015948982,6.182,80.911,80.84,18.5482]
[1647015949181,23.8186,80.912,80.845,113.0]
[1647015949380,23.8186,80.912,80.846,6.182]
[1647015949582,6.182,80.953,80.847,123.5]
[1647015949783,123.5,80.955,80.848,6.181]
[1647015949986,54.68253238,80.926,80.86,18.5353]
[1647015950191,54.68253238,80.926,80.861,6.181]
[1647015950390,54.68253238,80.926,80.861,30.48660184]
[1647015950587,47.4854,80.949,80.862,6.18]
[1647015950790,47.4854,80.949,80.863,4.51431642]
[1647015950988,47.4854,80.949,80.864,6.18]
[1647015951185,47.4854,80.949,80.88,18.5369]
[1647015951387,47.4854,80.949,80.881,6.179]
[1647015951590,46.92121255,80.948,80.865,9.22347957]
[1647015951785,46.92121255,80.948,80.882,3.04447957]
[1647015951986,46.92121255,80.948,80.883,6.179]
[1647015952187,46.92121255,80.948,80.89,18.5371]
[1647015952388,46.92121255,80.948,80.891,6.179]
[1647015952987,46.92121255,80.948,80.89,18.5371]
[1647015953988,46.92121255,80.948,80.891,6.179]
[1647015954188,46.92121255,80.948,80.9,18.5317]
[1647015955093,47.4854,80.949,80.91,18.5316]
[1647015955891,23.7725,80.966,80.91,18.5316]
[1647015956097,53.48552685,80.97,80.911,3.04447957]
[1647015956291,53.48552685,80.97,80.92,18.5269]
[1647015958200,48.1244,80.988,80.921,3.04447957]
[1647015958497,6.176,81.013,80.94,18.524]
[1647015958701,148.91738871,81.03,80.94,18.524]
[1647015958702,46.2876,81.012,80.941,6.174]
[1647015959098,64.17776051,81.011,80.941,6.174]
[1647015959299,64.17776051,81.011,80.96,18.5198]
[1647015959900,64.17776051,81.011,80.941,6.173]
[1647015960302,18.5234,81.01,80.941,6.173]
[1647015960500,123.5,81.01,80.923,3.04447957]
[1647015960703,6.175,81.009,80.913,3.04447957]
[1647015960902,123.5,81.008,80.9,3.04447957]
[1647015961124,6.176,81.007,80.9,3.04447957]
[1647015961329,6.176,81.008,80.906,3.04447957]
[1647015961525,6.176,81.009,80.906,7.41199049]
[1647015961724,18.5236,81.01,80.92,18.5297]
[1647015962126,6.175,81.009,80.92,18.5297]
[1647015962525,18.5256,81.0,80.921,3.04447957]
[1647015962728,23.6154,80.999,80.93,18.5256]
[1647015962928,49.35766076,80.998,80.93,18.5256]
[1647015964428,123.5,80.989,80.902,3.04447957]
[1647015964630,123.5,80.987,80.902,3.04447957]
[1647015964829,123.5,80.983,80.905,3.04447957]
[1647015965531,23.2845,80.986,80.878,24.4042]
[1647015965532,123.5,80.967,80.883,3.04447957]
[1647015965728,123.5,80.965,80.883,3.04447957]
[1647015967130,123.5,80.959,80.89,18.5364]
[1647015967328,18.5351,80.96,80.89,18.5364]
[1647015967731,24.6622,80.966,80.891,4.86065808]
[1647015968135,24.6622,80.966,80.91,18.5229]
[1647015968529,24.6622,80.966,80.911,3.04447957]
[1647015969334,24.6622,80.966,80.92,18.5285]
[1647015969940,6.176,81.011,80.921,3.04447957]
[1647015970137,23.41,81.014,80.921,3.04447957]
[1647015970138,24.2354,81.008,80.921,3.04447957]
[1647015970339,24.2354,81.008,80.94,18.5237]
[1647015970743,58.60766437,80.985,80.94,18.5237]
[1647015971137,58.60766437,80.985,80.941,3.04447957]
[1647015971338,58.60766437,80.985,80.94,18.5237]
[1647015972138,58.60766437,80.985,80.941,3.04447957]
[1647015972337,58.60766437,80.985,80.94,18.5237]
[1647015973641,23.9656,81.007,80.94,18.5237]
[1647015974139,6.174,81.006,80.94,18.5237]
[1647015974640,53.02987722,81.005,80.94,18.5237]
[1647015975439,53.02987722,81.005,80.929,18.1119]
[1647015975440,53.02987722,81.005,80.96,18.5181]
[1647015975644,23.9656,81.007,80.96,18.5181]
[1647015976042,6.174,81.05,80.96,18.5181]
[1647015976240,45.9524,81.049,80.96,18.5181]
[1647015976444,129.672,81.048,80.96,18.5181]
[1647015976642,123.5,81.039,80.96,17.5181]
[1647015976841,22.7377,81.038,80.96,17.5181]
[1647015977241,22.7377,81.038,80.941,3.04447957]
[1647015977441,129.673,81.037,80.941,3.04447957]
[1647015977642,123.5,81.029,80.941,3.04447957]
[1647015977841,123.5,81.027,80.941,3.04447957]
[1647015979247,18.5236,81.01,80.95,18.5236]
[1647015979446,56.78944967,81.009,80.95,18.5236]
[1647015980373,18.5247,81.0,80.941,3.04447957]
[1647015980577,18.5247,81.0,80.927,3.04447957]
[1647015980775,18.5247,81.0,80.911,3.04447957]
[1647015981174,123.5,80.999,80.911,3.04447957]
[1647015981380,18.5308,80.98,80.901,3.04447957]
[1647015981573,61.7735,80.99,80.882,23.2641]
[1647015981574,123.5,80.977,80.882,23.2641]
[1647015981774,123.5,80.975,80.882,42.1437]
[1647015982574,57.19758251,80.959,80.89,18.5374]
[1647015982971,24.8296,80.958,80.89,18.5374]
[1647015984672,24.8296,80.958,80.891,3.04447957]
[1647015984871,24.8296,80.958,80.91,18.5329]
[1647015985572,24.8296,80.958,80.891,3.04447957]
[1647015985973,24.8296,80.958,80.9,18.5347]
[1647015986376,24.8296,80.958,80.901,3.04447957]
[1647015987475,24.8296,80.958,80.91,18.5331]
[1647015987877,4.83,80.967,80.911,3.04447957]
[1647015988479,4.83,80.967,80.92,18.5239]
[1647015988678,48.05117533,80.966,80.92,18.5239]
[1647015988883,4.83,80.967,80.921,3.04447957]
[1647015989482,4.83,80.967,80.93,18.5208]
[1647015989881,4.83,80.967,80.931,3.04447957]
[1647015990081,4.83,80.967,80.931,7.11865614]
[1647015990280,2.47431849,80.967,80.931,7.11865614]
[1647015990482,46.5619,81.02,80.94,18.5168]
[1647015990679,46.5619,81.02,80.941,5.17245948]
[1647015990880,46.5619,81.02,80.941,8.21693905]
[1647015991285,46.5619,81.02,80.942,3.04447957]
[1647015991488,46.5619,81.02,80.96,18.5147]
[1647015991986,46.5619,81.02,80.96,21.55917957]
[1647015997292,46.5619,81.02,80.96,3.04447957]
[1647015998394,46.5619,81.02,80.96,21.56547957]